fUSD/lending_fUSD_20240718
["ID","MTS","AMOUNT","RATE_DAILY","PERIOD"]
[332576050,1721305835201,-6318.91836194,0.00035,10]
[332576051,1721305837730,-4630.01961616,0.00035,10]
[332576052,1721305837819,-319.5,0.00035,10]
[332576091,1721305839861,-227.41308538,0.00034998,7]
[332576092,1721305839871,-1870.9140051,0.00035,10]
[332576093,1721305839882,-1935.48126714,0.00035,10]
[332576100,1721305843536,-2951.52100116,0.00035,10]
[332576102,1721305843549,-547.46957672,0.00035,10]
[332576104,1721305843563,-12722.43118339,0.00035,10]
[332576105,1721305843576,-336.84091214,0.00035,10]
[332576108,1721305843593,-455.28006939,0.00035,10]
[332576113,1721305846024,-323.0,0.00035,5]
[332576114,1721305846034,-1428.00533518,0.00035,21]
[332576115,1721305846045,-553.22115253,0.00035,21]
[332576116,1721305846056,-32437.0740051,0.00035,21]
[332576117,1721305846067,-717.12394233,0.00035,21]
[332576118,1721305846091,-28468.38412595,0.00035,21]
[332576119,1721305846103,-689.31406054,0.00035,21]
[332576120,1721305846114,-297.63621753,0.00035,21]
[332576121,1721305846137,-7148.8,0.00035,21]
[332576122,1721305846148,-451.34,0.00035,21]
[332576123,1721305846158,-382.51727014,0.00035,21]
[332576124,1721305846169,-629.98319428,0.00035,21]
[332576125,1721305846205,-5227.01473356,0.00035,21]
[332576126,1721305846222,-17276.60396848,0.00035,21]
[332576127,1721305846234,-3431.15037639,0.00035,21]
[332576128,1721305846245,-2743.572205,0.00035,21]
[332576129,1721305846256,-335.30570427,0.00035,21]
[332576130,1721305846267,-283.2823812,0.00035,21]
[332576131,1721305846285,-3751.6676475,0.00035,21]
[332576132,1721305846682,-677.57587675,0.00035,21]
[332576133,1721305846696,-1195.57080635,0.00035,21]
[332576134,1721305846726,-533.14216904,0.00035,21]
[332576135,1721305846737,-4458.71138469,0.00035,21]
[332576136,1721305846749,-506.0548444,0.00035,21]
[332576158,1721307032573,-484.0373514,0.00014566,2]
[332576159,1721307032583,-302.87483183,0.00014566,2]
[332576160,1721307032592,-150.0,0.00015,2]
[332576161,1721307032603,-503.52667315,0.00015,2]
[332576162,1721307032747,-502.58197198,0.00015,2]
[332576163,1721307032758,-125.27101398,0.00017,2]
[332576171,1721307038035,-74.72898602,0.00017,2]
[332576172,1721307038044,-169.35308735,0.00018108,2]
[332576173,1721307038054,-157.49799236,0.00018149,2]
[332576174,1721307038064,-153.50621038,0.00018488,2]
[332576175,1721307038076,-166.66666666,0.00018814,2]
[332576176,1721307038086,-156.45325115,0.00018908,2]
[332576177,1721307038095,-203.19133917,0.00019452,2]
[332576178,1721307038108,-1975.7100161,0.00019452,2]
[332576179,1721307038157,-650.35,0.00019452,2]
[332576180,1721307038219,-666.85864473,0.00019452,2]
[332576181,1721307038229,-499.99,0.00019452,2]
[332576182,1721307038238,-153.39614122,0.00021057,2]
[332576183,1721307038249,-157.49799237,0.00021183,2]
[332576184,1721307038258,-153.50621038,0.00021845,2]
[332576185,1721307038269,-156.09116541,0.00022557,2]
[332576186,1721307038278,-200.0,0.00023,2]
[332576187,1721307038287,-156.09116541,0.00023657,2]
[332576188,1721307038297,-160.96479368,0.00024349,2]
[332576189,1721307038308,-166.90315977,0.00024583,2]
[332576190,1721307038318,-1120.0,0.000247,2]
[332576191,1721307038331,-153.39614122,0.00024755,2]
[332576192,1721307038340,-155.85175389,0.00024781,2]
[332576193,1721307038350,-153.54583882,0.0002523,2]
[332576194,1721307038359,-156.09116541,0.00026227,2]
[332576195,1721307038368,-154.98095529,0.00026423,2]
[332576196,1721307038379,-166.66666667,0.00027252,2]
[332576197,1721307038389,-151.84,0.00027832,2]
[332576199,1721307038399,-154.98095529,0.00028569,2]
[332576201,1721307038408,-548.14,0.0002975,2]
[332576203,1721307038418,-500.0,0.00029821,2]
[332576205,1721307038428,-153.39614122,0.00029895,2]
[332576207,1721307038437,-333.77,0.0003,7]
[332576209,1721307038447,-164.9,0.00030055,2]
[332576211,1721307038457,-164.9,0.00030074,2]
[332576214,1721307038467,-164.9,0.00030093,2]
[332576217,1721307038476,-164.9,0.00030112,2]
[332576219,1721307038486,-169.63,0.00030125,2]
[332576221,1721307038496,-164.9,0.0003013,2]
[332576223,1721307038505,-164.9,0.00030149,2]
[332576225,1721307038515,-164.9,0.00030168,2]
[332576227,1721307038524,-164.9,0.00030187,2]
[332576229,1721307038534,-164.9,0.00030206,2]
[332576231,1721307038544,-199.04,0.00030272,120]
[332576233,1721307038554,-169.13,0.00030354,2]
[332576235,1721307038563,-113.65595808,0.00030582,120]
[332576237,1721307038578,-42.43404192,0.00030582,120]
[332576239,1721307038587,-979.69,0.00030663,2]
[332576242,1721307038597,-209.27121034,0.00030766,2]
[332576244,1721307038609,-40.72878966,0.00030766,2]
[332576246,1721307038618,-167.18,0.00031066,2]
[332576248,1721307038628,-156.09116541,0.00031348,7]
[332576250,1721307038637,-151.84,0.00031417,2]
[332576252,1721307038647,-153.39614122,0.00031768,7]
[332576254,1721307038657,-334.21333485,0.00032,2]
[332576256,1721307038668,-1665.78666515,0.00032,2]
[332576258,1721307038678,-153.39614122,0.00032144,7]
[332576260,1721307038687,-181.72285012,0.00032389,7]
[332576262,1721307038697,-167.18,0.00032776,2]
[332576264,1721307038707,-3000.0,0.000334,2]
[332576266,1721307038716,-548.14,0.00033469,2]
[332576268,1721307038726,-180.0,0.00033677,2]
[332576270,1721307038735,-500.0,0.00033958,2]
[332576272,1721307038745,-698.0,0.00034,20]
[332576274,1721307038754,-1000.0,0.00034057,2]
[332576276,1721307038763,-9236.68269313,0.00034057,2]
[332576278,1721307038773,-1000.0,0.00034058,2]
[332576280,1721307038783,-12061.23440366,0.00034058,2]
[332576296,1721307039906,-3942.910008,0.00034058,2]
[332576297,1721307039951,-774.46656194,0.00034058,2]
[332576298,1721307040227,-1922.61,0.00034058,2]
[332576303,1721307042978,-5258.33635405,0.00034058,2]
[332576304,1721307043508,-3906.02537235,0.00034058,2]
[332576306,1721307043519,-500.0,0.00034246,60]
[332576308,1721307043529,-500.0,0.00034246,60]
[332576310,1721307043538,-500.0,0.00034246,14]
[332576312,1721307043548,-500.0,0.00034246,14]
[332576313,1721307043558,-500.0,0.00034246,14]
[332576314,1721307043568,-500.0,0.00034246,14]
[332576315,1721307043580,-500.0,0.00034246,14]
[332576316,1721307043589,-500.0,0.00034246,14]
[332576317,1721307043599,-500.0,0.00034246,14]
[332576318,1721307043608,-568.89326695,0.00034246,14]
[332576319,1721307043618,-2000.0,0.00034246,120]
[332576320,1721307043627,-156.45325115,0.00034342,7]
[332576321,1721307043636,-400.0,0.000344,12]
[332576322,1721307043646,-307.28,0.00034467,2]
[332576323,1721307043655,-300.25,0.00034467,2]
[332576324,1721307043664,-150.0,0.00034467,2]
[332576325,1721307043673,-386.81,0.00034467,2]
[332576326,1721307043683,-529.43,0.00034467,2]
[332576327,1721307043692,-166.04,0.00034467,2]
[332576328,1721307043701,-150.0,0.00034467,2]
[332576329,1721307043710,-529.43,0.00034467,2]
[332576330,1721307043720,-165.16,0.00034467,2]
[332576331,1721307043729,-188.9,0.00034467,2]
[332576332,1721307043738,-150.0,0.00034467,2]
[332576333,1721307043748,-165.16,0.00034467,2]
[332576334,1721307043757,-150.0,0.00034467,2]
[332576335,1721307043767,-322.9,0.00034467,2]
[332576336,1721307043776,-529.43,0.00034467,2]
[332576337,1721307043785,-529.43,0.00034467,2]
[332576338,1721307043794,-529.43,0.00034467,2]
[332576339,1721307043803,-150.0,0.00034467,2]
[332576340,1721307043814,-165.16,0.00034467,2]
[332576341,1721307043824,-529.43,0.00034467,2]
[332576342,1721307043834,-165.11,0.00034467,2]
[332576343,1721307043844,-529.43,0.00034467,2]
[332576344,1721307043853,-529.43,0.00034467,2]
[332576345,1721307043863,-529.43,0.00034467,2]
[332576346,1721307043872,-167.18,0.00034485,2]
[332576347,1721307043882,-900.0,0.000345,12]
[332576348,1721307043892,-500.0,0.0003452,62]
[332576349,1721307043901,-1128.64873107,0.0003452,120]
[332576374,1721307047696,-250.0,0.000337,2]
[332576375,1721307047707,-871.35126893,0.0003452,120]
[332576376,1721307047716,-1400.0,0.000346,12]
[332576377,1721307047727,-1488.44935177,0.000347,12]
[332576378,1721307047739,-411.55064823,0.000347,12]
[332576379,1721307047748,-500.0,0.0003472,10]
[332576380,1721307047758,-300.0,0.00034754,2]
[332576381,1721307047767,-500.0,0.00034794,64]
[332576382,1721307047777,-2000.0,0.00034794,120]
[332576383,1721307047787,-2400.0,0.000348,12]
[332576384,1721307047796,-182.8855422,0.000348,14]
[332576385,1721307047806,-166.66666667,0.00034877,7]
[332576386,1721307047815,-167.0,0.00034893,2]
[332576387,1721307047825,-165.18250567,0.000349,2]
[332576388,1721307047834,-177.42557793,0.000349,7]
[332576389,1721307047843,-400.0,0.000349,12]
[332576390,1721307047852,-7500.0,0.000349,2]
[332576391,1721307047863,-4996.34310435,0.000349,15]
[332576392,1721307047872,-6262.84526738,0.000349,2]
[332576393,1721307047881,-211.6389918,0.000349,2]
[332576394,1721307047890,-323.31687176,0.000349,2]
[332576395,1721307047899,-150.0,0.00034979,2]
[332576396,1721307047909,-155.16,0.0003499,2]
[332576397,1721307047918,-155.16,0.0003499,2]
[332576398,1721307047928,-155.16,0.0003499,2]
[332576399,1721307047937,-1026.8876142,0.00034997,2]
[332576400,1721307047947,-4996.34310435,0.00034999,15]
[332576401,1721307047957,-150.0,0.00034999,30]
[332576402,1721307047967,-150.0,0.00034999,30]
[332576403,1721307047976,-150.0,0.00034999,30]
[332576404,1721307047986,-150.0,0.00034999,30]
[332576405,1721307047996,-150.0,0.00034999,30]
[332576406,1721307048006,-150.0,0.00034999,30]
[332576407,1721307048015,-1483.30301991,0.00034999,2]
[332576408,1721307048028,-1002.4786,0.00034999,2]
[332576409,1721307048038,-500.0,0.00034999,7]
[332576410,1721307048048,-500.0,0.00034999,7]
[332576411,1721307048057,-500.0,0.00034999,7]
[332576412,1721307048066,-500.0,0.00034999,7]
[332576413,1721307048077,-353.71423379,0.00034999,7]
[332576414,1721307048087,-185.48664274,0.00034999,7]
[332576415,1721307048096,-435.46119025,0.00034999,7]
[332576417,1721307048107,-500.0,0.00034999,7]
[332576419,1721307048117,-500.0,0.00034999,7]
[332576420,1721307048127,-500.0,0.00034999,7]
[332576421,1721307048136,-500.0,0.00034999,7]
[332576422,1721307048146,-297.65320226,0.00034999,7]
[332576423,1721307048155,-500.0,0.00034999,7]
[332576424,1721307048165,-500.0,0.00034999,7]
[332576425,1721307048175,-500.0,0.00034999,7]
[332576426,1721307048184,-825.87,0.00034999,2]
[332576427,1721307048194,-3000.0,0.00034999,2]
[332576428,1721307048204,-289.0,0.00035,5]
[332576429,1721307048215,-50994.36076894,0.00035,21]
[332576430,1721307048244,-1201.8381094,0.00035,21]
[332576431,1721307048268,-1909.09,0.00035,21]
[332576432,1721307671865,-1690.0983,0.00014466,2]
[332576433,1721307709581,150.0,0.00015,2]
[332576451,1721308232370,-300.16515746,0.00015737,2]
[332576452,1721308232380,-200.0,0.00017,2]
[332576453,1721308232389,-269.19545097,0.00017259,2]
[332576454,1721308232400,-3120.63136838,0.00018182,2]
[332576455,1721308232411,-1266.52941865,0.00018182,2]
[332576456,1721308232422,-667.36237526,0.00018182,2]
[332576457,1721308232534,-1180.09098916,0.00018182,2]
[332576458,1721308232543,-499.99,0.00021186,2]
[332576459,1721308232553,-309.12,0.00021186,2]
[332576460,1721308232563,-500.0,0.00021643,2]
[332576461,1721308232572,-311.96,0.00021644,2]
[332576462,1721308232581,-150.75,0.00021644,2]
[332576463,1721308232591,-1104.0,0.000248,2]
[332576464,1721308232600,-151.4282893,0.00026381,2]
[332576465,1721308232609,-311.96,0.00027714,2]
[332576466,1721308232618,-155.8517539,0.00028551,2]
[332576467,1721308232627,-152.61,0.0002955,2]
[332576468,1721308232636,-152.9113651,0.00029807,2]
[332576469,1721308232646,-152.22497459,0.00030526,7]
[332576470,1721308232656,-154.98095529,0.00030978,7]
[332576471,1721308232666,-1338.47,0.00031,120]
[332576472,1721308232676,-714.65,0.00031168,2]
[332576473,1721308232685,-250.0,0.00031186,2]
[332576474,1721308232694,-1847.41,0.00031412,2]
[332576475,1721308232704,-300.0,0.00031413,2]
[332576476,1721308232713,-168.65,0.00031413,2]
[332576477,1721308232722,-761.238,0.00031413,2]
[332576478,1721308232731,-200.0,0.00031471,2]
[332576479,1721308232741,-153.39614122,0.00031567,7]
[332576480,1721308232750,-151.4282893,0.00031618,7]
[332576481,1721308232759,-156.09,0.000317,120]
[332576482,1721308232768,-328.88,0.00031829,2]
[332576483,1721308232778,-150.75,0.0003213,2]
[332576484,1721308232787,-600.0,0.00032147,12]
[332576485,1721308232796,-153.39614122,0.0003218,7]
[332576486,1721308232805,-159.1,0.00032447,2]
[332576487,1721308232815,-159.1,0.00032458,2]
[332576488,1721308232824,-159.1,0.0003247,2]
[332576489,1721308232833,-159.1,0.00032481,2]
[332576490,1721308232842,-159.1,0.00032493,2]
[332576491,1721308232851,-159.1,0.00032505,2]
[332576492,1721308232860,-159.1,0.00032516,2]
[332576493,1721308232870,-159.1,0.00032528,2]
[332576494,1721308232879,-159.1,0.00032539,2]
[332576495,1721308232888,-159.1,0.00032551,2]
[332576496,1721308232897,-11943.04374971,0.00032562,4]
[332576497,1721308232907,-159.1,0.00032563,2]
[332576498,1721308232916,-159.1,0.00032574,2]
[332576499,1721308232925,-159.1,0.00032586,2]
[332576500,1721308232948,-159.1,0.00032597,2]
[332576501,1721308232966,-3000.0,0.000326,2]
[332576502,1721308232984,-159.1,0.00032609,2]
[332576503,1721308233005,-153.5062104,0.00032875,7]
[332576504,1721308233023,-150.20291126,0.0003293,7]
[332576505,1721308233041,-500.0,0.00033,2]
[332576506,1721308233057,-1505.79001,0.00033,7]
[332576507,1721308233075,-152.61,0.00033134,2]
[332576508,1721308233093,-600.0,0.00033486,15]
[332576509,1721308233113,-1067.04718193,0.00033784,4]
[332576510,1721308233128,-311.96,0.00033785,2]
[332576511,1721308233142,-179.71,0.00033997,120]
[332576512,1721308233160,-500.0,0.00034,2]
[332576513,1721308233175,-500.0,0.00034,2]
[332576514,1721308233191,-500.0,0.00034,2]
[332576515,1721308233205,-500.0,0.00034,2]
[332576516,1721308233227,-500.0,0.00034,2]
[332576517,1721308233241,-500.0,0.00034,2]
[332576518,1721308233257,-500.0,0.00034,2]
[332576519,1721308233270,-500.0,0.00034,2]
[332576520,1721308233286,-500.0,0.00034,2]
[332576521,1721308233301,-500.0,0.00034,2]
[332576522,1721308233317,-500.0,0.00034,2]
[332576523,1721308233332,-500.0,0.00034,2]
[332576524,1721308233348,-500.0,0.00034,2]
[332576525,1721308233363,-500.0,0.00034,2]
[332576526,1721308233378,-500.0,0.00034,2]
[332576527,1721308233395,-350.38,0.00034,2]
[332576528,1721308233412,-297.14,0.00034,2]
[332576529,1721308233427,-153.39614122,0.00034094,7]
[332576530,1721308233443,-150.0,0.00034129,2]
[332576531,1721308233459,-150.0,0.00034129,2]
[332576532,1721308233474,-500.0,0.00034246,60]
[332576533,1721308233490,-895.01,0.00034246,60]
[332576534,1721308233506,-272.2871084,0.00034299,4]
[332576535,1721308233522,-739.92860502,0.00034399,4]
[332576536,1721308233537,-3171.0,0.000344,2]
[332576537,1721308233552,-500.0,0.000345,2]
[332576538,1721308233568,-500.0,0.0003452,62]
[332576539,1721308233583,-895.01,0.0003452,62]
[332576540,1721308233598,-156.09116545,0.00034642,7]
[332576541,1721308233614,-432.90763231,0.00034649,4]
[332576542,1721308233629,-4202.0,0.0003465,2]
[332576543,1721308233644,-272.50011806,0.00034718,4]
[332576544,1721308233660,-500.0,0.00034719,10]
[332576545,1721308233675,-300.0,0.00034774,4]
[332576546,1721308233691,-227.41308538,0.00034774,7]
[332576547,1721308233706,-180.0,0.00034775,2]
[332576548,1721308233721,-227.41308538,0.00034793,7]
[332576549,1721308233736,-500.0,0.00034794,64]
[332576550,1721308233750,-895.01,0.00034794,64]
[332576551,1721308233765,-600.0,0.00034881,18]
[332576552,1721308233780,-1406.7918,0.00034893,2]
[332576553,1721308233796,-3997.07448348,0.00034899,15]
[332576554,1721308233812,-156.58508644,0.00034899,15]
[332576555,1721308233829,-21522.00312278,0.000349,2]
[332576556,1721308233856,-1091.33682044,0.000349,2]
[332576557,1721308233874,-508.47198714,0.000349,2]
[332576558,1721308233914,-7408.87156964,0.000349,2]
[332576559,1721308233930,-202.37217045,0.000349,7]
[332576560,1721308233945,-165.18250567,0.000349,2]
[332576561,1721308233961,-500.0,0.000349,2]
[332576562,1721308233976,-142.72130286,0.000349,2]
[332576563,1721308233993,-643.35469944,0.000349,2]
[332576568,1721308238126,-3389.15417594,0.000349,2]
[332576569,1721308238137,-323.31687176,0.000349,2]
[332576570,1721308238146,-2486.83728669,0.000349,2]
[332576571,1721308238156,-316.78,0.00034904,2]
[332576572,1721308238166,-3179.53616501,0.0003498,4]
[332576573,1721308238454,-4201.46418999,0.0003498,4]
[332576591,1721308240112,-5771.22150779,0.0003498,4]
[332576593,1721308240122,-4763.93889041,0.00034995,4]
[332576595,1721308240131,-3997.07448348,0.00034998,15]
[332576596,1721308240141,-150.0,0.00034999,30]
[332576597,1721308240150,-150.0,0.00034999,30]
[332576598,1721308240159,-150.0,0.00034999,30]
[332576599,1721308240169,-150.0,0.00034999,30]
[332576600,1721308240179,-150.0,0.00034999,30]
[332576601,1721308240189,-150.0,0.00034999,30]
[332576602,1721308240199,-150.0,0.00034999,30]
[332576603,1721308240209,-1000.0,0.00034999,2]
[332576604,1721308240218,-1000.0,0.00034999,2]
[332576605,1721308240228,-1000.0,0.00034999,2]
[332576606,1721308240237,-1000.0,0.00034999,2]
[332576607,1721308240247,-1000.0,0.00034999,2]
[332576608,1721308240256,-1000.0,0.00034999,2]
[332576609,1721308240266,-1000.0,0.00034999,2]
[332576610,1721308240276,-1000.0,0.00034999,2]
[332576611,1721308240286,-1000.0,0.00034999,2]
[332576612,1721308240295,-1000.0,0.00034999,2]
[332576613,1721308240305,-1000.0,0.00034999,2]
[332576614,1721308240314,-1000.0,0.00034999,2]
[332576615,1721308240325,-1000.0,0.00034999,2]
[332576616,1721308240335,-1000.0,0.00034999,2]
[332576617,1721308240344,-1000.0,0.00034999,2]
[332576618,1721308240354,-1000.0,0.00034999,2]
[332576619,1721308240363,-1000.0,0.00034999,2]
[332576620,1721308240373,-1000.0,0.00034999,2]
[332576621,1721308240382,-1000.0,0.00034999,2]
[332576622,1721308240391,-1000.0,0.00034999,2]
[332576623,1721308240403,-1000.0,0.00034999,2]
[332576624,1721308240414,-186.2510048,0.00034999,2]
[332576625,1721308240423,-304.82283318,0.00034999,7]
[332576626,1721308240433,-500.0,0.00034999,7]
[332576627,1721308240443,-500.0,0.00034999,7]
[332576628,1721308240453,-500.0,0.00034999,7]
[332576629,1721308240463,-500.0,0.00034999,7]
[332576630,1721308240473,-308.35724158,0.00034999,7]
[332576631,1721308240484,-500.0,0.00034999,7]
[332576632,1721308240495,-261.52380375,0.00034999,7]
[332576633,1721308240504,-791.46,0.00034999,2]
[332576634,1721308240514,-3000.0,0.00034999,2]
[332576635,1721308240523,-2000.0,0.00034999,120]
[332576636,1721308240533,-260.0,0.00035,5]
[332576637,1721308240542,-180991.70109468,0.00035,21]
[332576638,1721308240563,-3332.47902648,0.00035,21]
[332576639,1721308240575,-482.58161904,0.00035,21]
[332576640,1721308240586,-892.19844599,0.00035,21]
[332576641,1721308240602,-1787.78223404,0.00035,21]
[332576642,1721308240615,-3002.2,0.00035,21]
[332576648,1721308240672,-2264.48904993,0.00035,21]
[332576658,1721308243617,-510.73073305,0.00035,21]
[332576660,1721308243630,-5297.32974595,0.00035,21]
[332576662,1721308243640,-376921.30839833,0.00035,10]
[332576665,1721308243653,-685.26,0.00035,10]
[332576667,1721308243664,-28467.58910216,0.00035,10]
[332576669,1721308243675,-353.44412154,0.00035,10]
[332576670,1721308243686,-108290.3180234,0.00035,10]
[332576671,1721308243697,-52244.641299,0.00035,10]
[332576672,1721308243709,-475.67259041,0.00035,10]
[332576673,1721308243720,-1027.75345066,0.00035,10]
[332576679,1721308246112,-272.20036569,0.00035,10]
[332576680,1721308246123,-870.897,0.00035,10]
[332576681,1721308246134,-4915.68527795,0.00035,10]
[332576690,1721308246267,-53562.63432919,0.00035,10]
[332576691,1721308246297,-4034.1092408,0.00035,10]
[332576692,1721308246310,-785.9192,0.00035,10]
[332576693,1721308246352,-13946.68130343,0.00035,10]
[332576696,1721308464858,-227.41308538,0.00017259,2]
[332576697,1721308464879,-599.45308107,0.00017259,2]
[332576698,1721308464900,-160.22911332,0.00017259,2]
[332576699,1721308464921,-295.85958051,0.00017259,2]
[332576700,1721308464943,-798.23257384,0.00017259,2]
[332576701,1721308464965,-155.0,0.00017259,2]
[332576702,1721308464986,-2835.98042277,0.00017807,2]
[332576703,1721308465010,-202.81794501,0.00017807,2]
[332576704,1721308465031,-300.06839446,0.00018182,2]
[332576705,1721308465053,-151.4282893,0.00019624,2]
[332576706,1721308469948,227.41308538,0.00016999,2]
[332576707,1721308476270,202.81794501,0.00017533,2]
[332576708,1721308480690,155.0,0.00017259,2]
[332576709,1721308494517,1848.18818395,0.00017259,2]
[332576710,1721308494540,1000.0,0.00017259,2]
[332576711,1721308494563,2000.0,0.00017259,2]
[332576712,1721308516144,-2500.0,0.00017259,2]
[332576714,1721309109003,1027792.86026437,0.00014,2]
[332576715,1721309130307,1184.95354899,0.000118,2]
[332576716,1721309171010,301.0758172,0.000118,2]
[332576722,1721309331605,150.0,0.00014,2]
[332576723,1721309331625,150.0,0.00014,2]
[332576724,1721309331646,9.5063563,0.00014,2]
[332576725,1721309350564,150.0,0.000118,2]
[332576726,1721309350584,150.0,0.000118,2]
[332576727,1721309350604,150.0,0.000118,2]
[332576728,1721309350625,150.0,0.000118,2]
[332576729,1721309350645,150.0,0.000118,2]
[332576730,1721309350664,150.0,0.000118,2]
[332576731,1721309350684,150.0,0.000118,2]
[332576732,1721309350705,150.0,0.000118,2]
[332576733,1721309350724,150.0,0.000118,2]
[332576734,1721309350743,150.0,0.000118,2]
[332576735,1721309350767,150.0,0.000118,2]
[332576736,1721309350788,150.0,0.000118,2]
[332576737,1721309350812,150.0,0.000118,2]
[332576738,1721309350831,150.0,0.000118,2]
[332576739,1721309350856,144.45068947,0.000118,2]
[332576740,1721309359615,158.70478125,0.000118,2]
[332576741,1721309392437,150.0,0.000118,2]
[332576742,1721309392458,150.0,0.000118,2]
[332576743,1721309392484,150.0,0.000118,2]
[332576744,1721309392504,150.0,0.000118,2]
[332576745,1721309401384,150.0,0.000118,2]
[332576746,1721309401405,150.06839446,0.000118,2]
[332576763,1721309432327,-227.41308538,0.00014297,2]
[332576764,1721309432337,-367.03516126,0.00014297,2]
[332576765,1721309432347,-202.81794501,0.00014298,2]
[332576766,1721309432357,-155.000001,0.00014298,2]
[332576767,1721309432367,-174.38964159,0.00014298,2]
[332576768,1721309432377,-1961.93966576,0.00014301,2]
[332576769,1721309432483,-874.04075701,0.00014301,2]
[332576770,1721309432493,-544.84128592,0.00014302,2]
[332576771,1721309432504,-1689.56694123,0.00014303,2]
[332576772,1721309432514,-216.93020437,0.00014671,2]
[332576773,1721309432523,-796.55,0.00017807,2]
[332576774,1721309432533,-150.99,0.00018532,2]
[332576775,1721309432543,-499.99,0.00018533,2]
[332576776,1721309432552,-250.0,0.00019451,2]
[332576777,1721309432561,-999.99,0.00019452,2]
[332576778,1721309432571,-5277.0919114,0.00019725,2]
[332576779,1721309432580,-150.99,0.00019726,2]
[332576780,1721309432590,-270.07,0.00021644,2]
[332576781,1721309432599,-152.53,0.00021644,2]
[332576782,1721309432609,-154.69869216,0.000232,2]
[332576783,1721309432619,-171.03,0.00023554,2]
[332576784,1721309432628,-180.82579411,0.0002421,2]
[332576785,1721309432638,-452.999999,0.00025,2]
[332576786,1721309432647,-279.0673,0.000269,2]
[332576787,1721309432657,-7309.53071917,0.00027,7]
[332576788,1721309432666,-29999.99,0.00028203,2]
[332576789,1721309432676,-11581.74,0.00028203,2]
[332576790,1721309432685,-370.2,0.00028203,2]
[332576791,1721309432695,-263.1,0.00028981,2]
[332576792,1721309432704,-156.45325115,0.00029876,2]
[332576793,1721309432714,-722.04,0.0002992,2]
[332576794,1721309432723,-690.4369,0.0003,4]
[332576795,1721309432733,-153.24,0.00030139,2]
[332576796,1721309432743,-500.0,0.00030219,2]
[332576797,1721309432752,-261.28,0.00030472,2]
[332576798,1721309432763,-1245.75,0.00030485,2]
[332576799,1721309432773,-161.35093905,0.00030847,7]
[332576800,1721309432785,-12330.82,0.00031004,2]
[332576801,1721309432795,-250.0,0.00031119,2]
[332576802,1721309432805,-179.71,0.00031363,120]
[332576803,1721309432814,-168.23,0.00032397,2]
[332576804,1721309432824,-645.43,0.00032427,2]
[332576805,1721309432835,-263.1,0.00032603,2]
[332576806,1721309432845,-171.36,0.00032675,2]
[332576807,1721309432854,-438.28,0.00032681,2]
[332576808,1721309432864,-180.0,0.00032779,2]
[332576809,1721309432873,-153.39614122,0.00032787,7]
[332576810,1721309432883,-153.39614122,0.00032809,7]
[332576811,1721309432892,-182.82062533,0.00032988,13]
[332576812,1721309432902,-214.75980978,0.00033,4]
[332576813,1721309432911,-245.66,0.00033088,2]
[332576814,1721309432921,-214.0,0.0003364,30]
[332576815,1721309432930,-153.24,0.00033723,2]
[332576816,1721309432940,-150.33,0.0003385,120]
[332576817,1721309432950,-500.0,0.00034,2]
[332576818,1721309432960,-803.96,0.00034175,60]